bitfinex-derivatives/quotes_ETHF0:USTF0_20210402
["timestamp","ask_amount","ask_price","bid_price","bid_amount"]
[1617353479557,81.19425,1993.6,1993.5,2.90695]
[1617353479756,78.75100229,1993.6,1993.5,2.90695]
[1617353482063,78.2873,1993.6,1993.5,2.90695]
[1617353482462,77.2854,1993.6,1993.5,2.90695]
[1617353486568,77.2854,1993.6,1993.5,4.85295]
[1617353488271,77.2854,1993.6,1993.5,2.90695]
[1617353488473,77.74933547,1993.6,1993.5,2.90695]
[1617353489472,76.74743547,1993.6,1993.5,2.90695]
[1617353491675,76.2835,1993.6,1993.5,2.90695]
[1617353492075,76.74725346,1993.6,1993.5,2.90695]
[1617353493478,76.2835,1993.6,1993.5,2.90695]
[1617353495585,76.97917183,1993.6,1993.5,2.90695]
[1617353496586,75.97727183,1993.6,1993.5,2.90695]
[1617353497386,75.2816,1993.6,1993.5,2.90695]
[1617353503492,74.2797,1993.6,1993.5,2.90695]
[1617353507398,74.97552802,1993.6,1993.5,2.90695]
[1617353507999,74.2797,1993.6,1993.5,2.90695]
[1617353508200,3.60273458,1993.7,1993.5,2.90695]
[1617353508801,0.69578458,1993.7,1993.5,2.90695]
[1617353510499,14.71606301,1993.8,1993.5,2.90695]
[1617353510701,14.71606301,1993.8,1993.7,2.48414167]
[1617353510900,13.7886,1993.8,1993.7,2.48414167]
[1617353511502,14.7845,1993.8,1993.7,2.48414167]
[1617353511703,15.71190675,1993.8,1993.7,2.48414167]
[1617353511903,14.71600675,1993.8,1993.7,2.48414167]
[1617353513103,13.7886,1993.8,1993.7,2.48414167]
[1617353517612,13.7426,1993.8,1993.7,2.48414167]
[1617353526521,12.7407,1993.8,1993.7,2.48414167]
[1617353529529,13.56904731,1993.8,1993.7,2.48414167]
[1617353531033,12.6406,1993.8,1993.7,2.48414167]
[1617353532731,13.5688893,1993.8,1993.7,2.48414167]
[1617353533631,12.5669893,1993.8,1993.7,2.48414167]
[1617353535734,11.6387,1993.8,1993.7,2.48414167]
[1617353535934,12.56713188,1993.8,1993.7,2.48414167]
[1617353539438,12.56713188,1993.8,1993.7,2.23664167]
[1617353539638,46.27783188,1993.8,1992.0,2.571]
[1617353539841,56.5919,1992.3,1992.0,2.571]
[1617353540037,58.1469,1992.3,1992.0,2.571]
[1617353540238,58.1469,1992.3,1991.5,30.0]
[1617353540438,1.555,1992.3,1991.1,1.77397061]
[1617353540638,0.5531,1992.3,1991.0,32.0]
[1617353540838,0.5531,1992.3,1992.2,2.90695]
[1617353541438,0.56755577,1992.3,1992.2,2.90695]
[1617353541839,0.56755577,1992.3,1992.2,71.48585]
[1617353541840,0.5531,1992.3,1992.2,71.48585]
[1617353542039,0.5531,1992.3,1992.2,2.90695]
[1617353542239,78.6094,1992.3,1992.2,2.90695]
[1617353542441,0.01446379,1992.4,1992.2,2.90695]
[1617353542640,0.01446484,1992.5,1992.2,63.93265]
[1617353542842,0.01446484,1992.5,1992.4,2.90695]
[1617353543041,0.01446484,1992.5,1992.4,4.90695]
[1617353543341,0.0144725,1992.7,1992.4,4.90695]
[1617353543541,0.01447438,1992.8,1992.4,4.90695]
[1617353543742,0.01447438,1992.8,1992.7,73.2061]
[1617353543942,0.01447438,1992.8,1992.7,75.2061]
[1617353544142,0.01447438,1992.8,1992.5,30.0]
[1617353544342,0.01447532,1992.9,1992.4,2.90695]
[1617353544542,62.3955,1992.6,1992.4,2.90695]
[1617353545343,0.01447457,1992.8,1992.4,2.90695]
[1617353545543,0.01447457,1992.8,1992.4,32.90695]
[1617353545743,0.01447457,1992.8,1992.7,56.5204]
[1617353546144,0.01447674,1992.9,1992.7,56.5204]
[1617353546343,0.01447674,1992.9,1992.7,58.5204]
[1617353546945,0.01447674,1992.9,1992.8,4.90695]
[1617353547644,13.78537674,1993.2,1992.8,4.90695]
[1617353548945,13.78537674,1993.2,1993.1,2.90695]
[1617353554554,12.78347674,1993.2,1993.1,2.90695]
[1617353559563,12.78347674,1993.2,1993.1,67.16785]
[1617353561073,0.28954439,1993.4,1993.1,67.16785]
[1617353561287,0.28954439,1993.4,1993.1,34.49475]
[1617353561486,0.28961456,1993.5,1993.1,34.49475]
[1617353561662,0.67786443,1994.0,1993.1,34.49475]
[1617353561862,1.15893918,1994.4,1993.6,79.5302]
[1617353562063,1.15893918,1994.4,1993.7,2.0]
[1617353562265,2.9002453,1994.8,1993.7,2.0]
[1617353562266,1.15948549,1994.7,1993.7,2.0]
[1617353562664,0.15758549,1994.7,1993.7,2.0]
[1617353562967,82.649,1994.9,1994.3,2.90695]
[1617353563165,82.649,1994.9,1994.3,4.28425]
[1617353564168,82.649,1994.9,1994.3,2.90695]
[1617353564967,82.649,1994.9,1994.7,2.90695]
[1617353566168,3.03886182,1995.1,1994.7,2.90695]
[1617353566367,2.03226182,1995.1,1994.7,2.90695]
[1617353566969,2.90695,1994.8,1994.7,2.90695]
[1617353567570,3.65876592,1994.8,1994.7,2.90695]
[1617353568571,2.96725337,1995.3,1994.7,2.90695]
[1617353568771,2.96725337,1995.3,1995.2,80.1235]
[1617353568972,2.03641769,1995.5,1995.2,81.7407]
[1617353569171,2.90695,1995.3,1995.2,84.64765]
[1617353569573,2.39575,1995.3,1995.2,84.64765]
[1617353571175,2.39575,1995.3,1995.2,83.03045]
[1617353571375,2.39575,1995.3,1995.2,2.90695]
[1617353575580,1.39385,1995.3,1995.2,2.90695]
[1617353577179,4.08878544,1995.5,1995.2,2.90695]
[1617353577583,0.69554447,1995.3,1995.2,2.90695]
[1617353582689,0.30464447,1995.3,1995.2,2.90695]
[1617353588797,2.90695,1995.5,1995.2,2.90695]
[1617353589399,2.90695,1995.5,1995.4,64.07655]
[1617353592599,1.90595,1995.5,1995.4,64.07655]
[1617353595606,0.90495,1995.5,1995.4,64.07655]
[1617353595805,0.90495,1995.5,1995.4,2.90695]
[1617353596206,65.04985,1995.5,1995.4,2.90695]
[1617353597009,0.90495,1995.5,1995.4,2.90695]
[1617353597209,0.90495,1995.5,1993.9,30.0]
[1617353597210,0.90495,1995.5,1994.3,30.0]
[1617353597408,67.5978,1995.4,1995.2,2.90695]
[1617353599316,70.50475,1995.4,1995.2,2.90695]
[1617353599717,69.50375,1995.4,1995.2,2.90695]
[1617353602622,68.50275,1995.4,1995.2,2.90695]
[1617353606721,68.24962718,1995.4,1995.2,2.90695]
[1617353609626,67.24862718,1995.4,1995.2,2.90695]
[1617353610026,67.24862718,1995.4,1994.2,82.3563]
[1617353610627,68.17506747,1995.4,1994.2,82.3563]
[1617353611427,67.24862718,1995.4,1994.2,82.3563]
[1617353611626,64.34167718,1995.4,1995.0,2.90695]
[1617353613527,2.90695,1995.1,1995.0,2.90695]
[1617353613727,4.33785,1995.1,1995.0,2.90695]
[1617353616631,3.33685,1995.1,1995.0,2.90695]
[1617353618034,4.34365,1995.1,1995.0,2.90695]
[1617353618432,3.33685,1995.1,1995.0,2.90695]
[1617353619433,4.34805,1995.1,1995.0,2.90695]
[1617353623641,3.34705,1995.1,1995.0,2.90695]
[1617353624040,3.34705,1995.1,1993.5,32.0]
[1617353624240,60.237,1994.2,1993.2,30.0]
[1617353624440,62.2217,1994.2,1993.2,30.0]
[1617353624641,60.237,1993.7,1993.2,32.0]
[1617353625241,1.4776,1993.8,1993.2,32.0]
[1617353625441,1.4776,1993.8,1993.6,58.786]
[1617353625641,1.4776,1993.8,1993.7,2.90695]
[1617353626242,0.0578945,1994.8,1993.7,2.90695]
[1617353626441,14.1635,1994.9,1993.7,2.90695]
[1617353626442,0.05789493,1994.7,1993.7,2.90695]
[1617353626842,1.70099493,1994.7,1993.7,2.90695]
[1617353627642,1.70099493,1994.7,1994.6,2.90695]
[1617353627643,1.6431,1994.7,1994.6,2.90695]
[1617353629343,1.70100059,1994.7,1994.6,2.90695]
[1617353629746,4.60795059,1994.7,1994.6,2.90695]
[1617353630346,4.55005,1994.7,1994.6,2.90695]
[1617353630748,3.54905,1994.7,1994.6,2.90695]
[1617353631354,3.54905,1994.7,1993.0,2.0]
[1617353631550,80.7041,1993.9,1993.0,2.0]
[1617353631749,82.3568,1993.9,1993.0,2.0]
[1617353633651,82.3568,1993.9,1993.8,2.90695]
[1617353637754,81.9111,1993.9,1993.8,2.90695]
[1617353641258,82.9055,1993.9,1993.8,2.90695]
[1617353641661,85.81245,1993.9,1993.8,2.90695]
[1617353641861,115.81245,1993.9,1993.8,2.90695]
[1617353643164,84.81805,1993.9,1993.8,2.90695]
[1617353643663,81.9111,1993.9,1993.8,2.90695]
[1617353646567,82.8997,1993.9,1993.8,2.90695]
[1617353646766,81.9111,1993.9,1993.8,2.90695]
[1617353647867,82.9086,1993.9,1993.8,2.90695]
[1617353648569,2.6502,1993.9,1993.8,2.90695]
[1617353649569,1.6527,1993.9,1993.8,2.90695]
[1617353649970,1.4455,1993.9,1993.8,2.90695]
[1617353650769,32.4439,1993.9,1993.8,2.90695]
[1617353651772,35.35085,1993.9,1993.8,2.90695]
[1617353652170,5.35085,1993.9,1993.8,2.90695]
[1617353653972,35.35085,1993.9,1993.8,2.90695]
[1617353654172,30.0,1993.7,1992.3,79.246]
[1617353654774,0.05776868,1993.6,1992.3,79.246]
[1617353655775,0.05776868,1993.6,1993.5,2.90695]
[1617353656279,30.0,1993.7,1993.5,2.90695]
[1617353657779,2.90695,1993.6,1993.5,2.90695]
[1617353657981,32.90695,1993.6,1993.5,2.90695]
[1617353664385,32.90695,1993.6,1993.5,0.90075]
[1617353664587,32.90695,1993.6,1991.7,4.571]
[1617353664785,30.0,1993.4,1991.7,2.571]
[1617353665590,30.05764772,1993.4,1991.7,4.571]
[1617353665790,30.05764772,1993.4,1992.4,2.90695]
[1617353667390,30.0,1993.4,1992.4,2.90695]
[1617353667592,0.05763852,1993.3,1992.4,2.90695]
[1617353667991,0.05763852,1993.3,1992.6,2.90695]
[1617353668790,1.0144,1993.3,1992.6,2.90695]
[1617353669893,2.90695,1992.7,1992.6,2.90695]
[1617353670091,4.52275,1992.7,1992.6,2.90695]
[1617353670292,74.73075,1992.7,1992.6,2.90695]
[1617353671091,75.73035,1992.7,1992.6,2.90695]
[1617353672394,5.52235,1992.7,1992.6,2.90695]
[1617353672596,0.9996,1992.7,1992.6,2.90695]
[1617353672795,1.07203916,1993.3,1992.6,4.33435]
[1617353672995,1.0144,1993.3,1992.6,4.33435]
[1617353673398,14.4858,1993.5,1992.9,77.8702]
[1617353673795,13.4844,1993.5,1992.9,77.8702]
[1617353673996,2.90695,1993.4,1993.3,2.90695]
[1617353674196,2.90695,1993.4,1993.3,4.78675]
[1617353676397,13.4844,1993.5,1993.3,4.78675]
[1617353676799,13.4844,1993.5,1993.3,2.90695]
[1617353676999,43.4844,1993.5,1992.1,71.1489]
[1617353677199,66.3248,1993.3,1992.1,71.1489]
[1617353677401,67.3244,1993.3,1992.1,71.1489]
[1617353677600,0.9996,1993.3,1992.0,2.0]
[1617353677801,13.4844,1993.5,1992.8,76.8748]
[1617353678001,13.4844,1993.5,1993.2,2.90695]
[1617353680002,13.4844,1993.5,1993.4,2.90695]
[1617353680211,13.4844,1993.5,1993.4,4.76425]
[1617353680802,12.483,1993.5,1993.4,4.76425]
[1617353681905,15.38995,1993.5,1993.4,4.76425]
[1617353683828,2.90695,1993.5,1993.4,4.76425]
[1617353684006,2.90695,1993.7,1993.4,4.76425]
[1617353684206,2.90695,1993.7,1993.6,61.2376]
[1617353686006,2.90695,1993.7,1993.6,64.14455]
[1617353687308,13.6667,1993.8,1993.6,64.14455]
[1617353687707,12.6653,1993.8,1993.6,64.14455]
[1617353688509,12.6653,1993.8,1993.6,2.90695]
[1617353694818,11.6639,1993.8,1993.6,2.90695]
[1617353699123,73.9342,1993.9,1993.6,2.90695]
[1617353700125,0.02890416,1994.1,1993.8,2.90695]
[1617353701533,2.93588429,1994.2,1993.8,2.90695]
[1617353701732,1.93448429,1994.2,1993.8,2.90695]
[1617353701932,2.89955,1994.2,1993.8,2.90695]
[1617353702132,2.89955,1994.2,1994.1,2.90695]
[1617353703133,0.994,1994.2,1994.1,6.53965]
[1617353703635,0.02893334,1994.3,1994.1,6.53965]
[1617353704033,0.02894761,1994.4,1994.1,6.53965]
[1617353704233,0.02894761,1994.4,1994.3,2.90695]
[1617353705235,0.02894761,1994.4,1994.3,4.90695]
[1617353706637,0.02894761,1994.4,1994.3,2.90695]
[1617353707539,1.03922628,1994.5,1994.3,2.90695]
[1617353707739,0.02892628,1994.5,1994.3,2.90695]
[1617353708541,0.02891549,1994.4,1994.3,2.90695]
[1617353708941,5.08111061,1994.9,1994.3,2.90695]
[1617353710042,0.4626772,1994.8,1994.3,2.90695]
[1617353710242,0.4626772,1994.8,1994.7,2.90695]
[1617353710442,3.36968859,1994.9,1994.7,2.90695]
[1617353711044,0.46279203,1994.8,1994.7,2.90695]
[1617353711443,3.36975651,1994.9,1994.7,2.90695]
[1617353711646,0.46274185,1994.8,1994.7,2.90695]
[1617353712944,3.36979523,1994.9,1994.7,2.90695]
[1617353715859,2.36839523,1994.9,1994.7,2.90695]
[1617353716262,32.36839523,1994.9,1994.7,2.90695]
[1617353716460,32.36839523,1994.9,1994.7,0.22535]
[1617353716660,32.36839523,1994.9,1993.1,66.9254]
[1617353716860,74.0735,1994.0,1993.1,66.9254]
[1617353717260,75.5485,1994.0,1993.1,66.9254]
[1617353718261,1.475,1994.0,1993.4,69.3368]
[1617353718460,1.475,1994.0,1993.9,2.90695]
[1617353720464,4.38195,1994.0,1993.9,2.90695]
[1617353721365,2.90695,1994.0,1993.9,2.90695]
[1617353722367,2.90695,1994.2,1993.9,2.90695]
[1617353722768,1.90555,1994.2,1993.9,2.90695]
[1617353724375,1.90555,1994.2,1994.1,2.90695]
[1617353725871,1.90555,1994.2,1994.1,2.71515]
[1617353727374,14.1714,1994.5,1994.1,2.71515]
[1617353727574,14.1714,1994.5,1994.1,4.13615]
[1617353728575,14.1714,1994.5,1994.4,2.90695]
[1617353729177,15.186,1994.5,1994.4,2.90695]
[1617353729376,14.1714,1994.5,1994.4,2.90695]
[1617353729777,13.17,1994.5,1994.4,2.90695]
[1617353730376,14.1619,1994.5,1994.4,2.90695]
[1617353731878,13.17,1994.5,1994.4,2.90695]
[1617353733678,14.1832,1994.5,1994.4,2.90695]
[1617353734476,13.17,1994.5,1994.4,2.90695]
[1617353736878,12.1686,1994.5,1994.4,2.90695]
[1617353737082,62.77245,1994.6,1994.4,2.90695]
[1617353740391,2.90695,1994.6,1994.4,2.90695]
[1617353740889,13.9135,1994.8,1994.4,2.90695]
[1617353742693,1.30047697,1995.1,1994.4,2.90695]
[1617353742893,4.20742697,1995.1,1995.0,2.90695]
[1617353743892,4.38105262,1995.1,1995.0,2.90695]
[1617353744093,34.38105262,1995.1,1995.0,2.90695]
[1617353744897,33.91815,1995.1,1995.0,2.90695]
[1617353745696,34.61216856,1995.1,1995.0,2.90695]
[1617353746699,33.91815,1995.1,1995.0,2.90695]
[1617353748001,3.91815,1995.1,1995.0,2.90695]
[1617353748599,74.5028,1994.8,1993.7,2.0]
[1617353748799,76.1777,1994.8,1993.7,2.0]
[1617353748999,76.1777,1994.8,1994.7,2.90695]
[1617353751208,74.5028,1994.8,1994.7,2.90695]
[1617353752209,74.79245097,1994.8,1994.7,2.90695]
[1617353753409,0.28965097,1994.8,1994.7,2.90695]
[1617353755010,33.60286683,1994.9,1994.7,2.90695]
[1617353757210,3.60286683,1994.9,1994.7,2.90695]
[1617353759011,3.60286683,1994.9,1994.4,2.90695]
[1617353759213,0.69582808,1994.8,1994.4,2.90695]
[1617353759414,0.28995456,1994.5,1994.4,2.90695]
[1617353760013,1.28345456,1994.5,1994.4,2.90695]
[1617353760213,0.29000872,1994.6,1994.4,2.90695]
[1617353760714,0.29000872,1994.6,1994.4,2.40035]
[1617353760913,3.19689882,1994.5,1994.4,2.40035]
[1617353761312,4.20629882,1994.5,1994.4,2.40035]
[1617353761914,34.20629882,1994.5,1993.5,81.3448]
[1617353762114,34.20629882,1994.5,1992.5,30.0]
[1617353762317,65.6775,1993.5,1992.5,30.0]
[1617353762523,67.0482,1993.5,1992.5,30.0]
[1617353762715,67.0482,1993.5,1992.6,2.0]
[1617353763114,67.0482,1993.5,1993.4,2.90695]
[1617353765418,65.6775,1993.5,1993.4,2.90695]
[1617353773835,67.5101,1993.5,1993.4,2.90695]
[1617353777335,1.8326,1993.5,1993.4,2.90695]
[1617353777935,81.4613,1993.5,1993.4,2.90695]
[1617353779939,81.75150238,1993.5,1993.4,2.90695]
[1617353780343,81.92584252,1993.5,1993.4,2.90695]
[1617353780640,2.29714252,1993.5,1993.4,2.90695]
[1617353781042,0.6970845,1993.6,1993.4,2.90695]
[1617353781242,34.89315,1993.5,1993.4,2.90695]
[1617353781441,35.59023995,1993.5,1993.4,2.90695]
[1617353782642,35.59023995,1993.5,1991.2,5.098]
[1617353782842,2.0,1993.4,1991.2,5.098]
[1617353783041,30.0,1993.3,1991.2,5.098]
[1617353783241,30.0,1992.5,1992.4,2.90695]
[1617353783442,31.0055,1992.5,1992.4,2.90695]
[1617353783845,33.46944189,1992.5,1992.4,2.90695]
[1617353784043,33.46944189,1992.5,1990.4,2.0]
[1617353784243,30.0,1992.3,1990.2,2.0]
[1617353784445,60.8584,1990.9,1990.2,2.0]
[1617353784646,1.8146,1990.9,1990.2,2.0]
[1617353785246,1.8146,1990.9,1990.8,2.90695]
[1617353785846,0.14488558,1992.0,1990.8,4.90695]
[1617353786847,0.12493399,1992.1,1990.8,4.90695]
[1617353787047,0.12493399,1992.1,1990.8,34.90695]
[1617353787247,3.03188399,1992.1,1992.0,2.90695]
[1617353787449,2.90695,1992.1,1992.0,2.90695]
[1617353790247,81.075,1992.4,1992.0,2.90695]
[1617353791047,80.0735,1992.4,1992.0,2.90695]
[1617353791247,80.0735,1992.4,1992.3,2.90695]
[1617353797961,79.072,1992.4,1992.3,2.90695]
[1617353798562,1.0103,1992.8,1992.3,2.90695]
[1617353798762,30.0,1993.2,1992.3,2.90695]
[1617353798962,80.6704,1992.5,1992.3,2.90695]
[1617353804975,2.90695,1992.6,1992.3,2.90695]
[1617353805175,77.1753,1992.5,1992.3,2.90695]
[1617353809479,80.08225,1992.5,1992.3,2.90695]
[1617353811383,80.08225,1992.5,1992.0,2.90695]
[1617353811985,79.08075,1992.5,1992.0,2.90695]
[1617353813487,2.90695,1992.5,1992.4,2.90695]
[1617353818389,2.89695,1992.5,1992.4,2.90695]
[1617353818991,1.89545,1992.5,1992.4,2.90695]
[1617353824197,95.6287,1993.3,1992.4,2.90695]
[1617353825499,95.6287,1993.3,1992.9,2.90695]
[1617353825998,94.6272,1993.3,1992.9,2.90695]
[1617353827399,124.6272,1993.3,1992.9,2.90695]
[1617353827600,2.90695,1993.0,1992.9,2.90695]
[1617353830405,0.0102,1993.3,1992.9,2.90695]
[1617353831509,2.90695,1993.0,1992.9,2.90695]
[1617353833108,1.90545,1993.0,1992.9,2.90695]
[1617353840019,0.90395,1993.0,1992.9,2.90695]
[1617353847027,76.26625,1993.1,1992.9,2.90695]
[1617353847626,2.90695,1993.0,1992.9,2.90695]
[1617353854035,1.90545,1993.0,1992.9,2.90695]
[1617353860142,1.91988426,1993.0,1992.9,2.90695]
[1617353861143,1.90545,1993.0,1992.9,2.90695]
[1617353861848,1.91988357,1993.0,1992.9,2.90695]
[1617353862247,1.90545,1993.0,1992.9,2.90695]
[1617353876559,2.59990695,1993.0,1992.9,2.90695]
[1617353876962,1.90545,1993.0,1992.9,2.90695]
[1617353877360,2.83276964,1993.0,1992.9,2.90695]
[1617353882565,1.90545,1993.0,1992.9,2.90695]
[1617353882766,2.83236105,1993.0,1992.9,2.90695]
[1617353887668,1.90545,1993.0,1992.9,2.90695]
[1617353891372,2.83256034,1993.0,1992.9,2.90695]
[1617353892374,1.90545,1993.0,1992.9,2.90695]
[1617353893575,1.90545,1993.0,1992.9,1.92485]
[1617353893776,80.0552,1991.9,1990.8,2.0]
[1617353893976,82.0062,1991.9,1990.6,98.5944]
[1617353894177,82.02068145,1991.9,1990.6,98.5944]
[1617353894376,82.02068145,1991.9,1991.8,2.90695]
[1617353894577,82.0062,1991.9,1991.8,2.90695]
[1617353894877,82.06409541,1991.9,1991.8,2.90695]
[1617353895278,82.0062,1991.9,1991.8,2.90695]
[1617353898885,82.06410112,1991.9,1991.8,2.90695]
[1617353899687,82.0062,1991.9,1991.8,2.90695]
[1617353899887,1.951,1991.9,1991.8,2.90695]
[1617353900086,0.28950038,1992.0,1991.8,2.90695]
[1617353900288,0.05790697,1991.9,1991.8,2.90695]
[1617353902189,0.05786924,1992.0,1991.8,2.90695]
[1617353902791,3.1962962,1992.2,1991.8,2.90695]
[1617353902792,0.01445659,1991.9,1991.8,2.90695]
[1617353904892,1.23655659,1991.9,1991.8,2.90695]
[1617353905693,1.2221,1991.9,1991.8,2.90695]
[1617353908195,1.2365174,1991.9,1991.8,2.90695]
[1617353908395,1.2221,1991.9,1991.8,2.90695]
[1617353908796,1.23651747,1991.9,1991.8,2.90695]
[1617353909497,1.2221,1991.9,1991.8,2.90695]
[1617353910096,1.23651761,1991.9,1991.8,2.90695]
[1617353911698,0.05763622,1992.0,1991.8,2.90695]
[1617353911898,0.28807789,1992.0,1991.8,2.90695]
[1617353912500,2.90695,1991.9,1991.8,2.90695]
[1617353912701,4.22305,1991.9,1991.8,2.90695]
[1617353913703,4.2374249,1991.9,1991.8,2.90695]
[1617353914705,4.22305,1991.9,1991.8,2.90695]
[1617353920008,4.28064393,1991.9,1991.8,2.90695]
[1617353920408,4.22305,1991.9,1991.8,2.90695]
[1617353920809,4.28065448,1991.9,1991.8,2.90695]
[1617353921411,4.22305,1991.9,1991.8,2.90695]
[1617353924415,4.23744153,1991.9,1991.8,2.90695]
[1617353925614,4.22305,1991.9,1991.8,2.90695]
[1617353925816,4.23743956,1991.9,1991.8,2.90695]
[1617353929918,1.33048956,1991.9,1991.8,2.90695]
[1617353930320,0.01438956,1991.9,1991.8,2.90695]
[1617353933721,0.01438744,1992.0,1991.8,2.90695]
[1617353934021,0.01438847,1991.9,1991.8,2.90695]
[1617353934726,2.92133847,1991.9,1991.8,2.90695]
[1617353935022,4.50823847,1991.9,1991.8,2.90695]
[1617353935622,4.49385,1991.9,1991.8,2.90695]
[1617353936023,4.50822682,1991.9,1991.8,2.90695]
[1617353936523,1.60127682,1991.9,1991.8,2.90695]
[1617353936724,4.49385,1991.9,1991.8,5e-05]
[1617353937125,34.49385,1991.9,1991.8,5e-05]
[1617353937925,34.49385,1991.9,1990.7,2.0]
[1617353938127,56.5707,1991.8,1990.7,2.0]
[1617353938327,0.01436488,1991.6,1990.7,2.0]
[1617353938527,1.00946488,1991.6,1990.6,1.0]
[1617353938727,0.9951,1991.6,1990.6,1.0]
[1617353938928,0.9951,1991.6,1991.3,2.90695]
[1617353940728,0.9951,1991.6,1991.3,1.87025]
[1617353940928,2.90695,1991.4,1991.3,1.87025]
[1617353941127,4.22185,1991.4,1991.3,1.87025]
[1617353943832,0.9951,1991.6,1991.3,1.87025]
[1617353944832,0.9951,1991.6,1990.6,1.0]
[1617353944833,3.90205,1991.6,1991.5,2.90695]
[1617353945235,69.1354,1991.7,1991.5,2.90695]
[1617353947237,68.1332,1991.7,1991.5,2.90695]
[1617353947638,2.9213256,1991.9,1991.5,2.90695]
[1617353948240,2.90695,1991.9,1991.5,2.90695]
[1617353948841,2.90695,1991.9,1991.8,2.90695]
[1617353949143,2.92132351,1991.9,1991.8,2.90695]
[1617353949841,2.90695,1991.9,1991.8,2.90695]
[1617353954246,3.54805,1991.9,1991.8,2.90695]
[1617353955546,1.91909439,1991.9,1991.8,2.90695]
[1617353955945,0.01434439,1991.9,1991.8,2.90695]
[1617353956646,71.88675083,1992.1,1991.8,2.90695]
[1617353956847,71.88675083,1992.1,1992.0,2.90695]
[1617353958346,71.90111159,1992.1,1992.0,2.90695]
[1617353961249,70.89891159,1992.1,1992.0,2.90695]
[1617353965654,70.88455241,1992.1,1992.0,2.90695]
[1617353966658,2.96481892,1992.1,1990.4,2.571]
[1617353966858,75.4017,1991.1,1990.4,2.571]
[1617353967057,76.9437,1991.1,1991.0,2.90695]
[1617353968259,75.9415,1991.1,1991.0,2.90695]
[1617353975160,74.9393,1991.1,1991.0,2.90695]
[1617353976661,73.3973,1991.1,1991.0,2.90695]
[1617353977160,2.90695,1991.2,1991.0,2.90695]
[1617353978762,2.89265,1991.2,1991.0,2.90695]
[1617353979364,32.89265,1991.2,1991.0,2.90695]
[1617353980265,2.89265,1991.2,1991.0,2.90695]
[1617353982273,1.89045,1991.2,1991.0,2.90695]
[1617353982469,1.90478978,1991.2,1991.0,2.90695]
[1617353983273,1.89045,1991.2,1991.0,2.90695]
[1617353983677,76.7821,1991.1,1991.0,2.90695]
[1617353989274,75.7799,1991.1,1991.0,2.90695]
[1617353989974,1.5821,1991.1,1991.0,2.90695]
[1617353990175,1.5557,1991.1,1991.0,2.90695]
[1617353994078,1.5700406,1991.1,1991.0,2.90695]
[1617353995278,1.5557,1991.1,1991.0,2.90695]
[1617353995478,1.90479239,1991.2,1991.0,2.90695]
[1617353995878,1.89479239,1991.2,1991.0,2.90695]
[1617353996278,0.89259239,1991.2,1991.0,2.90695]
[1617354003189,32.41774673,1991.5,1991.0,2.90695]
[1617354005188,2.90695,1991.1,1991.0,2.90695]
[1617354005389,4.65615,1991.1,1991.0,2.90695]
[1617354007090,34.65615,1991.1,1991.0,2.90695]
[1617354007290,34.65615,1991.1,1990.3,1.0]
[1617354007492,76.3823,1991.0,1989.9,59.5663]
[1617354007692,30.0,1990.9,1989.9,59.5663]
[1617354007891,30.0,1990.9,1989.9,57.3105]
[1617354007892,30.28558079,1990.9,1989.9,57.3105]
[1617354008091,30.28558079,1990.9,1989.9,56.3165]
[1617354008294,0.28555772,1990.8,1989.9,55.7216]
[1617354009094,1.77135863,1990.7,1989.9,55.7216]
[1617354009293,34.53475,1990.0,1989.9,53.7266]
[1617354009493,34.53475,1990.0,1989.6,2.90695]
[1617354009694,30.0,1989.9,1989.6,2.90695]
[1617354010293,28.9978,1989.9,1989.6,2.90695]
[1617354010693,5.53365,1990.0,1989.6,2.90695]
[1617354011095,59.8598,1989.8,1989.6,2.90695]
[1617354011294,2.90695,1989.7,1989.4,2.90695]
[1617354013196,2.90695,1989.5,1989.4,2.90695]
[1617354014797,2.88695,1989.5,1989.4,2.90695]
[1617354019303,1.88275,1989.5,1989.4,2.90695]
[1617354019504,74.7415,1990.1,1989.4,2.90695]
[1617354019705,14.7946,1990.7,1989.4,2.90695]
[1617354019904,14.7946,1990.7,1989.6,74.5325]
[1617354020305,14.7846,1990.7,1989.6,74.5325]
[1617354020505,14.7846,1990.7,1989.4,2.90695]
[1617354020704,57.3892,1989.9,1989.4,2.90695]
[1617354021305,57.3892,1989.9,1989.8,2.90695]
[1617354021505,57.3892,1989.9,1989.8,4.84205]
[1617354022207,56.385,1989.9,1989.8,4.84205]
[1617354022608,56.385,1989.9,1989.8,2.90695]
[1617354022809,2.90695,1990.6,1989.8,2.90695]
[1617354023008,60.9076,1990.5,1989.8,2.90695]
[1617354023411,60.9076,1990.5,1990.4,2.90695]
[1617354026214,59.9034,1990.5,1990.4,2.90695]
[1617354028215,14.11061629,1991.6,1990.4,2.90695]
[1617354028416,64.5122,1991.3,1990.4,2.90695]
[1617354029417,63.508,1991.3,1991.2,2.90695]
[1617354029617,67.1046,1991.3,1991.2,4.85795]
[1617354033219,67.1046,1991.3,1991.2,2.90695]
[1617354033220,66.1004,1991.3,1991.2,2.90695]
[1617354036224,65.0962,1991.3,1991.2,2.90695]
[1617354038232,0.14199986,1992.0,1991.2,2.90695]
[1617354038434,1.15806904,1992.1,1991.2,82.38675]
[1617354038629,0.14206904,1992.1,1991.2,82.38675]
[1617354038838,0.14216153,1992.3,1991.3,2.0]
[1617354039228,13.60167007,1992.4,1991.3,2.0]
[1617354039430,13.4595,1992.4,1992.1,2.90695]
[1617354040228,12.4553,1992.4,1992.1,2.90695]
[1617354041530,2.90695,1992.2,1992.1,2.90695]
[1617354042230,3.90365,1992.2,1992.1,2.90695]